[Event "Titled Tuesday Blitz November 2 2021"]
[White "Rozman, Levy"]
[Black "Sychev, Klementy"]
[WhiteFideId "2039877"]
[BlackFideId "4114060"]
[WhiteElo "2376"]
[BlackElo "2615"]
[Result "1/2-1/2"]
[Round "06"]
[TimeControl "180+1"]
[Date "2021.11.02"]
[WhiteClock "0:00:01"]
[BlackClock "0:00:07"]

1. d4 {[%clk 0:03:00]}  Nf6 {[%clk 0:02:56]} 2. c4 {[%clk 0:03:01]}  g6 {[%clk 0:02:56]} 3. Nc3 {[%clk 0:03:01]}  d5 {[%clk 0:02:56]} 4. cxd5 {[%clk 0:02:59]}  Nxd5 {[%clk 0:02:56]} 5. e4 {[%clk 0:02:59]}  Nxc3 {[%clk 0:02:55]} 6. bxc3 {[%clk 0:03:00]}  Bg7 {[%clk 0:02:56]} 7. Nf3 {[%clk 0:03:00]}  c5 {[%clk 0:02:55]} 8. h3 {[%clk 0:03:00]}  O-O {[%clk 0:02:49]} 9. Be2 {[%clk 0:02:59]}  Nc6 {[%clk 0:02:39]} 10. Be3 {[%clk 0:02:59]}  cxd4 {[%clk 0:02:38]} 11. cxd4 {[%clk 0:02:58]}  f5 {[%clk 0:02:30]} 12. O-O {[%clk 0:02:56]}  fxe4 {[%clk 0:02:29]} 13. Bc4+ {[%clk 0:02:54]}  Kh8 {[%clk 0:02:28]} 14. Ng5 {[%clk 0:02:48]}  Nxd4 {[%clk 0:02:27]} 15. Nxe4 {[%clk 0:02:39]}  e5 {[%clk 0:01:58]} 16. Bg5 {[%clk 0:01:55]}  Qe8 {[%clk 0:01:36]} 17. Nd6 {[%clk 0:01:51]}  Qc6 {[%clk 0:01:31]} 18. Nf7+ {[%clk 0:01:47]}  Rxf7 {[%clk 0:01:30]} 19. Bxf7 {[%clk 0:01:47]}  Bxh3 {[%clk 0:01:29]} 20. f3 {[%clk 0:01:35]}  Rf8 {[%clk 0:01:27]} 21. Bb3 {[%clk 0:01:27]}  Bd7 {[%clk 0:01:24]} 22. Be3 {[%clk 0:01:21]}  Qd6 {[%clk 0:01:20]} 23. Qd2 {[%clk 0:01:13]}  Bc6 {[%clk 0:01:18]} 24. Rad1 {[%clk 0:01:10]}  h5 {[%clk 0:00:55]} 25. Bc2 {[%clk 0:01:05]}  Qd8 {[%clk 0:00:47]} 26. Be4 {[%clk 0:01:03]}  Qe8 {[%clk 0:00:25]} 27. Bh6 {[%clk 0:00:56]}  Kh7 {[%clk 0:00:16]} 28. Bxg7 {[%clk 0:00:50]}  Kxg7 {[%clk 0:00:17]} 29. Rde1 {[%clk 0:00:50]}  Qe7 {[%clk 0:00:13]} 30. Bxc6 {[%clk 0:00:48]}  Nxc6 {[%clk 0:00:12]} 31. Qb2 {[%clk 0:00:43]}  Rf7 {[%clk 0:00:12]} 32. f4 {[%clk 0:00:43]}  Qc5+ {[%clk 0:00:11]} 33. Kh1 {[%clk 0:00:40]}  Nd4 {[%clk 0:00:06]} 34. Rxe5 {[%clk 0:00:31]}  Qc4 {[%clk 0:00:03]} 35. Rc1 {[%clk 0:00:19]}  Qd3 {[%clk 0:00:02]} 36. Qf2 {[%clk 0:00:07]}  Kh7 {[%clk 0:00:01]} 37. Rd5 {[%clk 0:00:06]}  Qa3 {[%clk 0:00:02]} 38. Rd1 {[%clk 0:00:03]}  Nf5 {[%clk 0:00:02]} 39. Rd7 {[%clk 0:00:04]}  Qf8 {[%clk 0:00:01]} 40. Rxf7+ {[%clk 0:00:03]}  Qxf7 {[%clk 0:00:01]} 41. Qf3 {[%clk 0:00:03]}  Qe7 {[%clk 0:00:01]} 42. Qd3 {[%clk 0:00:03]}  Kh6 {[%clk 0:00:01]} 43. g3 {[%clk 0:00:03]}  Qe6 {[%clk 0:00:01]} 44. Kg1 {[%clk 0:00:04]}  Qc6 {[%clk 0:00:02]} 45. Kf2 {[%clk 0:00:03]}  Qb6+ {[%clk 0:00:02]} 46. Kg2 {[%clk 0:00:03]}  Ne3+ {[%clk 0:00:02]} 47. Kf3 {[%clk 0:00:03]}  Nxd1 {[%clk 0:00:03]} 48. Qxd1 {[%clk 0:00:04]}  Qc6+ {[%clk 0:00:03]} 49. Kf2 {[%clk 0:00:04]}  Kg7 {[%clk 0:00:04]} 50. Qd4+ {[%clk 0:00:04]}  Kf7 {[%clk 0:00:04]} 51. Qxa7 {[%clk 0:00:05]}  Kf6 {[%clk 0:00:04]} 52. Qd4+ {[%clk 0:00:04]}  Kf7 {[%clk 0:00:04]} 53. a4 {[%clk 0:00:04]}  Ke7 {[%clk 0:00:03]} 54. Qg7+ {[%clk 0:00:04]}  Kd8 {[%clk 0:00:04]} 55. Qh7 {[%clk 0:00:04]}  Kc8 {[%clk 0:00:04]} 56. a5 {[%clk 0:00:03]}  Kb8 {[%clk 0:00:04]} 57. Qh8+ {[%clk 0:00:03]}  Ka7 {[%clk 0:00:05]} 58. Qd4+ {[%clk 0:00:02]}  Ka6 {[%clk 0:00:05]} 59. Qe5 {[%clk 0:00:02]}  Qb5 {[%clk 0:00:04]} 60. Qf6+ {[%clk 0:00:03]}  Qc6 {[%clk 0:00:05]} 61. Qe5 {[%clk 0:00:03]}  Qc2+ {[%clk 0:00:05]} 62. Ke3 {[%clk 0:00:01]}  Qb3+ {[%clk 0:00:05]} 63. Kf2 {[%clk 0:00:01]}  Qa2+ {[%clk 0:00:05]} 64. Kg1 {[%clk 0:00:02]}  Qxa5 {[%clk 0:00:05]} 65. Qe2+ {[%clk 0:00:02]}  Qb5 {[%clk 0:00:05]} 66. Qa2+ {[%clk 0:00:02]}  Kb6 {[%clk 0:00:06]} 67. Qf7 {[%clk 0:00:02]}  Qc6 {[%clk 0:00:06]} 68. Qf8 {[%clk 0:00:01]}  Ka6 {[%clk 0:00:06]} 69. Kh2 {[%clk 0:00:02]}  b5 {[%clk 0:00:06]} 70. Qa3+ {[%clk 0:00:01]}  Kb6 {[%clk 0:00:06]} 71. Qe3+ {[%clk 0:00:02]}  Kb7 {[%clk 0:00:05]} 72. Qe7+ {[%clk 0:00:03]}  Ka6 {[%clk 0:00:05]} 73. Qa3+ {[%clk 0:00:03]}  Kb6 {[%clk 0:00:06]} 74. Qe3+ {[%clk 0:00:03]}  Kc7 {[%clk 0:00:06]} 75. Qe7+ {[%clk 0:00:03]}  Kc8 {[%clk 0:00:06]} 76. Qf8+ {[%clk 0:00:03]}  Kb7 {[%clk 0:00:06]} 77. Qe7+ {[%clk 0:00:04]}  Qc7 {[%clk 0:00:06]} 78. Qe4+ {[%clk 0:00:03]}  Qc6 {[%clk 0:00:07]} 79. Qe7+ {[%clk 0:00:01]} 1/2-1/2


[Site "https://www.chess.com"]

[Event "Titled Tuesday Blitz November 2 2021"]
[White "Schmakel, Sam"]
[Black "King, Alexander"]
[WhiteFideId "2039311"]
[BlackFideId "2063620"]
[WhiteElo "2356"]
[BlackElo "2306"]
[Result "1-0"]
[Round "06"]
[TimeControl "180+1"]
[Date "2021.11.02"]
[WhiteClock "0:00:36"]
[BlackClock "0:00:02"]

1. Nf3 {[%clk 0:03:00]}  d5 {[%clk 0:03:00]} 2. g3 {[%clk 0:03:00]}  Nf6 {[%clk 0:02:59]} 3. Bg2 {[%clk 0:02:59]}  Bf5 {[%clk 0:03:00]} 4. O-O {[%clk 0:02:58]}  e6 {[%clk 0:03:00]} 5. c4 {[%clk 0:02:59]}  c6 {[%clk 0:03:00]} 6. Qb3 {[%clk 0:02:58]}  Qb6 {[%clk 0:03:00]} 7. d3 {[%clk 0:02:59]}  Nbd7 {[%clk 0:03:00]} 8. Be3 {[%clk 0:02:59]}  Bc5 {[%clk 0:03:00]} 9. Bxc5 {[%clk 0:02:49]}  Nxc5 {[%clk 0:03:00]} 10. Qa3 {[%clk 0:02:46]}  dxc4 {[%clk 0:02:31]} 11. dxc4 {[%clk 0:02:47]}  Bxb1 {[%clk 0:02:32]} 12. Raxb1 {[%clk 0:02:46]}  a5 {[%clk 0:02:31]} 13. Qc3 {[%clk 0:02:30]}  O-O {[%clk 0:02:29]} 14. e3 {[%clk 0:02:29]}  Rfd8 {[%clk 0:02:24]} 15. Rfd1 {[%clk 0:02:28]}  Rxd1+ {[%clk 0:02:01]} 16. Rxd1 {[%clk 0:02:29]}  Rd8 {[%clk 0:02:01]} 17. Qc2 {[%clk 0:02:28]}  Kf8 {[%clk 0:01:54]} 18. Ne5 {[%clk 0:02:08]}  Qc7 {[%clk 0:01:31]} 19. Rd4 {[%clk 0:01:50]}  Rxd4 {[%clk 0:01:14]} 20. exd4 {[%clk 0:01:51]}  Ncd7 {[%clk 0:01:15]} 21. Nd3 {[%clk 0:01:44]}  e5 {[%clk 0:00:57]} 22. Qc3 {[%clk 0:01:28]}  exd4 {[%clk 0:00:42]} 23. Qxd4 {[%clk 0:01:29]}  Ke7 {[%clk 0:00:42]} 24. c5 {[%clk 0:01:20]}  Nf8 {[%clk 0:00:35]} 25. Bh3 {[%clk 0:01:11]}  Ne6 {[%clk 0:00:19]} 26. Bxe6 {[%clk 0:01:09]}  fxe6 {[%clk 0:00:16]} 27. Nf4 {[%clk 0:00:49]}  e5 {[%clk 0:00:05]} 28. Qe3 {[%clk 0:00:49]}  Nd5 {[%clk 0:00:02]} 29. Qe4 {[%clk 0:00:37]}  Nf6 {[%clk 0:00:02]} 30. Qe2 {[%clk 0:00:36]} 1-0


[Site "https://www.chess.com"]

[Event "Titled Tuesday Blitz November 2 2021"]
[White "Siva Mahadevan"]
[Black "Lovkov, Roman"]
[WhiteFideId "25043153"]
[BlackFideId "4157389"]
[WhiteElo "2203"]
[BlackElo "2371"]
[Result "1-0"]
[Round "06"]
[TimeControl "180+1"]
[Date "2021.11.02"]
[WhiteClock "0:02:13"]
[BlackClock "0:00:56"]

1. e4 {[%clk 0:02:59]}  c5 {[%clk 0:02:59]} 2. Nf3 {[%clk 0:03:00]}  d6 {[%clk 0:02:59]} 3. d4 {[%clk 0:03:00]}  cxd4 {[%clk 0:03:00]} 4. Nxd4 {[%clk 0:03:01]}  Nf6 {[%clk 0:03:00]} 5. Nc3 {[%clk 0:03:02]}  g6 {[%clk 0:03:00]} 6. Be3 {[%clk 0:03:02]}  Bg7 {[%clk 0:03:01]} 7. f3 {[%clk 0:03:02]}  O-O {[%clk 0:03:01]} 8. Qd2 {[%clk 0:03:03]}  Nc6 {[%clk 0:03:02]} 9. Bc4 {[%clk 0:03:04]}  Bd7 {[%clk 0:02:49]} 10. h4 {[%clk 0:03:03]}  Ne5 {[%clk 0:02:47]} 11. Bb3 {[%clk 0:03:03]}  h5 {[%clk 0:02:47]} 12. O-O-O {[%clk 0:03:03]}  Rc8 {[%clk 0:02:48]} 13. Bg5 {[%clk 0:03:03]}  Rc5 {[%clk 0:02:45]} 14. Kb1 {[%clk 0:03:04]}  b5 {[%clk 0:02:43]} 15. g4 {[%clk 0:03:02]}  hxg4 {[%clk 0:02:21]} 16. h5 {[%clk 0:03:03]}  Nxh5 {[%clk 0:02:10]} 17. Nd5 {[%clk 0:03:03]}  Rxd5 {[%clk 0:02:07]} 18. Bxd5 {[%clk 0:03:04]}  Nxf3 {[%clk 0:01:34]} 19. Nxf3 {[%clk 0:03:00]}  gxf3 {[%clk 0:01:35]} 20. Rdg1 {[%clk 0:02:58]}  Qb8 {[%clk 0:01:19]} 21. Rxh5 {[%clk 0:02:56]}  e6 {[%clk 0:01:17]} 22. Bb3 {[%clk 0:02:49]}  a5 {[%clk 0:01:04]} 23. Qh2 {[%clk 0:02:27]}  Qb6 {[%clk 0:00:56]} 24. Rh8+ {[%clk 0:02:12]}  Bxh8 {[%clk 0:00:56]} 25. Rh1 {[%clk 0:02:13]} 1-0


[Site "https://www.chess.com"]

[Event "Titled Tuesday Blitz November 2 2021"]
[White "Skatchkov, Valery"]
[Black "Karolczuk, Iwo"]
[WhiteFideId "24195812"]
[BlackFideId "21816972"]
[WhiteElo "2195"]
[BlackElo "2093"]
[Result "1-0"]
[Round "06"]
[TimeControl "180+1"]
[Date "2021.11.02"]
[WhiteClock "0:00:10"]
[BlackClock "0:00:02"]

1. d4 {[%clk 0:03:00]}  Nf6 {[%clk 0:02:59]} 2. c4 {[%clk 0:03:00]}  g6 {[%clk 0:02:59]} 3. Nc3 {[%clk 0:03:01]}  Bg7 {[%clk 0:02:59]} 4. e4 {[%clk 0:03:01]}  O-O {[%clk 0:02:59]} 5. h3 {[%clk 0:03:01]}  d6 {[%clk 0:02:51]} 6. Be3 {[%clk 0:02:53]}  c5 {[%clk 0:02:48]} 7. Nf3 {[%clk 0:02:51]}  cxd4 {[%clk 0:02:39]} 8. Nxd4 {[%clk 0:02:52]}  b6 {[%clk 0:02:39]} 9. g4 {[%clk 0:02:46]}  Bb7 {[%clk 0:02:38]} 10. Bg2 {[%clk 0:02:45]}  Qc8 {[%clk 0:02:32]} 11. O-O {[%clk 0:02:21]}  Nbd7 {[%clk 0:02:25]} 12. Rc1 {[%clk 0:01:53]}  Nc5 {[%clk 0:02:20]} 13. Qc2 {[%clk 0:01:52]}  Ne6 {[%clk 0:02:12]} 14. Nxe6 {[%clk 0:01:34]}  Qxe6 {[%clk 0:02:04]} 15. Nd5 {[%clk 0:01:13]}  Qd7 {[%clk 0:01:55]} 16. Qd2 {[%clk 0:01:03]}  Rfd8 {[%clk 0:01:47]} 17. Nc3 {[%clk 0:00:52]}  Rac8 {[%clk 0:01:45]} 18. b3 {[%clk 0:00:52]}  Bc6 {[%clk 0:01:34]} 19. Rfd1 {[%clk 0:00:51]}  Qb7 {[%clk 0:01:33]} 20. Bd4 {[%clk 0:00:21]}  e5 {[%clk 0:01:18]} 21. Bxe5 {[%clk 0:00:18]}  dxe5 {[%clk 0:00:40]} 22. Qxd8+ {[%clk 0:00:19]}  Rxd8 {[%clk 0:00:40]} 23. Rxd8+ {[%clk 0:00:20]}  Bf8 {[%clk 0:00:40]} 24. Nd5 {[%clk 0:00:18]}  Nd7 {[%clk 0:00:33]} 25. Rd1 {[%clk 0:00:17]}  Kg7 {[%clk 0:00:33]} 26. g5 {[%clk 0:00:16]}  h6 {[%clk 0:00:30]} 27. h4 {[%clk 0:00:16]}  Bc5 {[%clk 0:00:28]} 28. Bh3 {[%clk 0:00:10]}  Bd4 {[%clk 0:00:27]} 29. Bxd7 {[%clk 0:00:07]}  Bxd7 {[%clk 0:00:24]} 30. Nf6 {[%clk 0:00:07]}  hxg5 {[%clk 0:00:14]} 31. hxg5 {[%clk 0:00:08]}  Qc8 {[%clk 0:00:10]} 32. Rxc8 {[%clk 0:00:08]}  Bxc8 {[%clk 0:00:11]} 33. Kg2 {[%clk 0:00:07]}  Kf8 {[%clk 0:00:11]} 34. Kf3 {[%clk 0:00:05]}  Ke7 {[%clk 0:00:10]} 35. Ng4 {[%clk 0:00:05]}  Bb7 {[%clk 0:00:09]} 36. Ne3 {[%clk 0:00:05]}  Kd6 {[%clk 0:00:09]} 37. Nd5 {[%clk 0:00:06]}  Kc5 {[%clk 0:00:08]} 38. Rh1 {[%clk 0:00:06]}  b5 {[%clk 0:00:07]} 39. Rh7 {[%clk 0:00:06]}  bxc4 {[%clk 0:00:07]} 40. bxc4 {[%clk 0:00:07]}  Kxc4 {[%clk 0:00:07]} 41. Rxf7 {[%clk 0:00:08]}  Ba6 {[%clk 0:00:05]} 42. Rxa7 {[%clk 0:00:07]}  Bxa7 {[%clk 0:00:04]} 43. Ne7 {[%clk 0:00:08]}  Kd3 {[%clk 0:00:02]} 44. Nxg6 {[%clk 0:00:07]}  Bd4 {[%clk 0:00:03]} 45. Ne7 {[%clk 0:00:06]}  Bb7 {[%clk 0:00:03]} 46. Nd5 {[%clk 0:00:06]}  Bxd5 {[%clk 0:00:03]} 47. exd5 {[%clk 0:00:07]}  e4+ {[%clk 0:00:04]} 48. Kf4 {[%clk 0:00:07]}  Bxf2 {[%clk 0:00:04]} 49. d6 {[%clk 0:00:08]}  Bb6 {[%clk 0:00:02]} 50. g6 {[%clk 0:00:08]}  e3 {[%clk 0:00:03]} 51. g7 {[%clk 0:00:08]}  e2 {[%clk 0:00:03]} 52. g8=Q {[%clk 0:00:09]}  e1=Q {[%clk 0:00:03]} 53. Qd5+ {[%clk 0:00:09]}  Kc2 {[%clk 0:00:03]} 54. Qc6+ {[%clk 0:00:10]}  Qc3 {[%clk 0:00:02]} 55. Qxb6 {[%clk 0:00:10]}  Qc4+ {[%clk 0:00:02]} 56. Ke5 {[%clk 0:00:10]}  Qe2+ {[%clk 0:00:03]} 57. Kd5 {[%clk 0:00:10]}  Qf3+ {[%clk 0:00:02]} 58. Kc5 {[%clk 0:00:10]}  Qc3+ {[%clk 0:00:02]} 59. Kb5 {[%clk 0:00:09]}  Qd3+ {[%clk 0:00:02]} 60. Kc6 {[%clk 0:00:10]}  Qe4+ {[%clk 0:00:02]} 61. Kc7 {[%clk 0:00:10]} 1-0


[Site "https://www.chess.com"]

[Event "Titled Tuesday Blitz November 2 2021"]
[White "Terry, Renato"]
[Black "Babazada, Khazar"]
[WhiteFideId "3803457"]
[BlackFideId "13413554"]
[WhiteElo "2577"]
[BlackElo "2302"]
[Result "0-1"]
[Round "06"]
[TimeControl "180+1"]
[Date "2021.11.02"]
[WhiteClock "0:00:01"]
[BlackClock "0:00:40"]

1. d4 {[%clk 0:03:00]}  d5 {[%clk 0:02:59]} 2. Bg5 {[%clk 0:03:01]}  Nf6 {[%clk 0:02:58]} 3. Bxf6 {[%clk 0:03:00]}  exf6 {[%clk 0:02:58]} 4. e3 {[%clk 0:03:01]}  c6 {[%clk 0:02:57]} 5. c4 {[%clk 0:03:01]}  dxc4 {[%clk 0:02:56]} 6. Bxc4 {[%clk 0:03:01]}  Be7 {[%clk 0:02:57]} 7. Nc3 {[%clk 0:03:01]}  O-O {[%clk 0:02:55]} 8. Qc2 {[%clk 0:03:02]}  c5 {[%clk 0:02:52]} 9. Rd1 {[%clk 0:02:57]}  cxd4 {[%clk 0:02:50]} 10. Rxd4 {[%clk 0:02:58]}  Qa5 {[%clk 0:02:45]} 11. Rd5 {[%clk 0:02:56]}  Qc7 {[%clk 0:02:43]} 12. Bd3 {[%clk 0:02:52]}  g6 {[%clk 0:02:40]} 13. a3 {[%clk 0:02:34]}  Be6 {[%clk 0:02:34]} 14. Rd4 {[%clk 0:02:31]}  Nc6 {[%clk 0:02:33]} 15. Ra4 {[%clk 0:02:11]}  Rfd8 {[%clk 0:02:27]} 16. Nf3 {[%clk 0:02:07]}  Qd7 {[%clk 0:02:10]} 17. Be2 {[%clk 0:02:01]}  a6 {[%clk 0:02:04]} 18. O-O {[%clk 0:01:55]}  b5 {[%clk 0:02:04]} 19. Rf4 {[%clk 0:01:53]}  g5 {[%clk 0:02:01]} 20. Re4 {[%clk 0:01:42]}  f5 {[%clk 0:01:55]} 21. Rd1 {[%clk 0:00:53]}  Qb7 {[%clk 0:01:47]} 22. Red4 {[%clk 0:00:51]}  Nxd4 {[%clk 0:01:47]} 23. Nxd4 {[%clk 0:00:52]}  Rac8 {[%clk 0:01:42]} 24. Nxf5 {[%clk 0:00:51]}  Rxd1+ {[%clk 0:01:39]} 25. Bxd1 {[%clk 0:00:52]}  Qd7 {[%clk 0:01:29]} 26. Bg4 {[%clk 0:00:46]}  Bf6 {[%clk 0:01:18]} 27. e4 {[%clk 0:00:25]}  Bxc3 {[%clk 0:01:03]} 28. bxc3 {[%clk 0:00:26]}  Bxf5 {[%clk 0:01:01]} 29. exf5 {[%clk 0:00:19]}  Qd4 {[%clk 0:00:58]} 30. h3 {[%clk 0:00:19]}  Rxc3 {[%clk 0:00:58]} 31. Qe2 {[%clk 0:00:19]}  Kg7 {[%clk 0:00:53]} 32. Kh2 {[%clk 0:00:11]}  Rd3 {[%clk 0:00:46]} 33. Kg1 {[%clk 0:00:08]}  Rd2 {[%clk 0:00:43]} 34. Qe1 {[%clk 0:00:08]}  Ra2 {[%clk 0:00:41]} 35. Qe7 {[%clk 0:00:01]}  Qxf2+ {[%clk 0:00:40]} 0-1


[Site "https://www.chess.com"]

[Event "Titled Tuesday Blitz November 2 2021"]
[White "Tregubov, Pavel V."]
[Black "Kovalenko, Igor"]
[WhiteFideId "4115341"]
[BlackFideId "14117908"]
[WhiteElo "2423"]
[BlackElo "2629"]
[Result "1/2-1/2"]
[Round "06"]
[TimeControl "180+1"]
[Date "2021.11.02"]
[WhiteClock "0:00:21"]
[BlackClock "0:00:50"]

1. e4 {[%clk 0:03:00]}  e6 {[%clk 0:02:59]} 2. d4 {[%clk 0:02:59]}  d5 {[%clk 0:03:00]} 3. exd5 {[%clk 0:02:59]}  exd5 {[%clk 0:03:00]} 4. Nf3 {[%clk 0:02:59]}  Nf6 {[%clk 0:03:00]} 5. Bd3 {[%clk 0:02:59]}  Bd6 {[%clk 0:03:01]} 6. Qe2+ {[%clk 0:02:59]}  Be6 {[%clk 0:03:00]} 7. c4 {[%clk 0:02:58]}  O-O {[%clk 0:02:59]} 8. c5 {[%clk 0:02:55]}  Be7 {[%clk 0:02:59]} 9. h3 {[%clk 0:02:49]}  Nc6 {[%clk 0:02:59]} 10. O-O {[%clk 0:02:47]}  Ne4 {[%clk 0:02:59]} 11. Nc3 {[%clk 0:02:42]}  f5 {[%clk 0:02:58]} 12. Bb5 {[%clk 0:02:38]}  Bf6 {[%clk 0:02:58]} 13. Bxc6 {[%clk 0:02:36]}  bxc6 {[%clk 0:02:57]} 14. Bf4 {[%clk 0:02:37]}  Re8 {[%clk 0:02:54]} 15. Be5 {[%clk 0:02:35]}  Bf7 {[%clk 0:02:50]} 16. Bxf6 {[%clk 0:02:16]}  Qxf6 {[%clk 0:02:50]} 17. Nxe4 {[%clk 0:02:09]}  dxe4 {[%clk 0:02:48]} 18. Ne5 {[%clk 0:02:09]}  Bd5 {[%clk 0:02:48]} 19. f4 {[%clk 0:01:56]}  exf3 {[%clk 0:02:47]} 20. gxf3 {[%clk 0:01:57]}  f4 {[%clk 0:02:46]} 21. Kh2 {[%clk 0:01:55]}  Qf5 {[%clk 0:02:43]} 22. Rg1 {[%clk 0:01:53]}  Re7 {[%clk 0:02:42]} 23. Rg4 {[%clk 0:01:49]}  Rae8 {[%clk 0:02:41]} 24. Rag1 {[%clk 0:01:48]}  g6 {[%clk 0:02:29]} 25. Qd2 {[%clk 0:01:48]}  Rf8 {[%clk 0:02:19]} 26. Rg5 {[%clk 0:01:47]}  Qc8 {[%clk 0:02:03]} 27. Qf2 {[%clk 0:01:34]}  Rg7 {[%clk 0:01:59]} 28. b3 {[%clk 0:01:26]}  Rf6 {[%clk 0:01:51]} 29. Qh4 {[%clk 0:01:24]}  Qe6 {[%clk 0:01:50]} 30. R5g4 {[%clk 0:01:11]}  Qf5 {[%clk 0:01:40]} 31. R1g2 {[%clk 0:01:11]}  Rf8 {[%clk 0:01:34]} 32. Rg5 {[%clk 0:01:10]}  Qb1 {[%clk 0:01:27]} 33. R5g4 {[%clk 0:01:03]}  Qc1 {[%clk 0:01:24]} 34. Qh6 {[%clk 0:01:02]}  Rf6 {[%clk 0:01:16]} 35. h4 {[%clk 0:00:57]}  Qd1 {[%clk 0:01:05]} 36. Rxf4 {[%clk 0:00:54]}  Rxf4 {[%clk 0:00:55]} 37. Qxf4 {[%clk 0:00:53]}  Qe1 {[%clk 0:00:55]} 38. h5 {[%clk 0:00:44]}  gxh5 {[%clk 0:00:50]} 39. Rxg7+ {[%clk 0:00:39]}  Kxg7 {[%clk 0:00:51]} 40. Qg5+ {[%clk 0:00:39]}  Kf8 {[%clk 0:00:52]} 41. Qd8+ {[%clk 0:00:36]}  Kg7 {[%clk 0:00:52]} 42. Qe7+ {[%clk 0:00:35]}  Kg8 {[%clk 0:00:52]} 43. Qd8+ {[%clk 0:00:33]}  Kg7 {[%clk 0:00:51]} 44. Qg5+ {[%clk 0:00:30]}  Kf8 {[%clk 0:00:51]} 45. Qf6+ {[%clk 0:00:29]}  Kg8 {[%clk 0:00:50]} 46. Qd8+ {[%clk 0:00:21]}  Kg7 {[%clk 0:00:50]} 1/2-1/2


[Site "https://www.chess.com"]

[Event "Titled Tuesday Blitz November 2 2021"]
[White "Visakh N R"]
[Black "Karpeshov, Oleg"]
[WhiteFideId "25012223"]
[BlackFideId "4106814"]
[WhiteElo "2454"]
[BlackElo "2354"]
[Result "1-0"]
[Round "06"]
[TimeControl "180+1"]
[Date "2021.11.02"]
[WhiteClock "0:00:04"]
[BlackClock "0:00:03"]

1. c4 {[%clk 0:03:00]}  e5 {[%clk 0:02:58]} 2. g3 {[%clk 0:02:59]}  Nc6 {[%clk 0:02:57]} 3. Bg2 {[%clk 0:02:59]}  f5 {[%clk 0:02:57]} 4. d3 {[%clk 0:02:53]}  Nf6 {[%clk 0:02:57]} 5. Nf3 {[%clk 0:02:53]}  g6 {[%clk 0:02:55]} 6. O-O {[%clk 0:02:53]}  Bg7 {[%clk 0:02:55]} 7. Bg5 {[%clk 0:02:53]}  h6 {[%clk 0:02:53]} 8. Bxf6 {[%clk 0:02:53]}  Bxf6 {[%clk 0:02:53]} 9. Nc3 {[%clk 0:02:53]}  d6 {[%clk 0:02:52]} 10. Nd5 {[%clk 0:02:51]}  Bg7 {[%clk 0:02:52]} 11. b4 {[%clk 0:02:51]}  O-O {[%clk 0:02:50]} 12. Rb1 {[%clk 0:02:50]}  Nb8 {[%clk 0:02:50]} 13. a4 {[%clk 0:02:46]}  Nd7 {[%clk 0:02:50]} 14. b5 {[%clk 0:02:44]}  Nc5 {[%clk 0:02:46]} 15. a5 {[%clk 0:02:43]}  Rb8 {[%clk 0:02:45]} 16. b6 {[%clk 0:02:36]}  axb6 {[%clk 0:02:41]} 17. axb6 {[%clk 0:02:37]}  c6 {[%clk 0:02:41]} 18. Nc7 {[%clk 0:02:36]}  Ne6 {[%clk 0:02:39]} 19. Nxe6 {[%clk 0:02:34]}  Bxe6 {[%clk 0:02:39]} 20. Qb3 {[%clk 0:02:32]}  Ra8 {[%clk 0:02:32]} 21. Nd2 {[%clk 0:02:14]}  Qd7 {[%clk 0:02:26]} 22. Ra1 {[%clk 0:02:13]}  Rxa1 {[%clk 0:02:16]} 23. Rxa1 {[%clk 0:02:11]}  e4 {[%clk 0:02:16]} 24. Ra7 {[%clk 0:02:10]}  d5 {[%clk 0:02:16]} 25. cxd5 {[%clk 0:02:01]}  cxd5 {[%clk 0:02:16]} 26. Qa4 {[%clk 0:01:32]}  Qc8 {[%clk 0:02:06]} 27. Nb3 {[%clk 0:01:26]}  Kh7 {[%clk 0:02:01]} 28. Bf1 {[%clk 0:01:20]}  exd3 {[%clk 0:01:50]} 29. exd3 {[%clk 0:01:16]}  f4 {[%clk 0:01:50]} 30. Nd4 {[%clk 0:01:05]}  Bd7 {[%clk 0:01:35]} 31. Qb4 {[%clk 0:01:05]}  fxg3 {[%clk 0:01:31]} 32. hxg3 {[%clk 0:01:04]}  Qc1 {[%clk 0:01:29]} 33. Rxb7 {[%clk 0:00:59]}  Rf7 {[%clk 0:01:21]} 34. Ne2 {[%clk 0:00:50]}  Qc6 {[%clk 0:00:59]} 35. Rc7 {[%clk 0:00:48]}  Qf6 {[%clk 0:00:58]} 36. Qc5 {[%clk 0:00:33]}  d4 {[%clk 0:00:58]} 37. Nf4 {[%clk 0:00:20]}  g5 {[%clk 0:00:57]} 38. Rxd7 {[%clk 0:00:11]}  Rxd7 {[%clk 0:00:57]} 39. Nd5 {[%clk 0:00:09]}  Qe5 {[%clk 0:00:48]} 40. Bg2 {[%clk 0:00:09]}  Qd6 {[%clk 0:00:30]} 41. Be4+ {[%clk 0:00:09]}  Kh8 {[%clk 0:00:30]} 42. Qxd6 {[%clk 0:00:08]}  Rxd6 {[%clk 0:00:31]} 43. b7 {[%clk 0:00:09]}  Rd8 {[%clk 0:00:30]} 44. Ne7 {[%clk 0:00:09]}  Rb8 {[%clk 0:00:24]} 45. f4 {[%clk 0:00:09]}  gxf4 {[%clk 0:00:24]} 46. gxf4 {[%clk 0:00:10]}  Bf8 {[%clk 0:00:24]} 47. Nc8 {[%clk 0:00:09]}  Bc5 {[%clk 0:00:22]} 48. Kg2 {[%clk 0:00:09]}  Kg7 {[%clk 0:00:21]} 49. Kf3 {[%clk 0:00:09]}  Kf6 {[%clk 0:00:21]} 50. Kg4 {[%clk 0:00:09]}  Kg7 {[%clk 0:00:18]} 51. Kf5 {[%clk 0:00:09]}  Kf7 {[%clk 0:00:17]} 52. Bd5+ {[%clk 0:00:09]}  Kg7 {[%clk 0:00:17]} 53. Ke6 {[%clk 0:00:09]}  h5 {[%clk 0:00:16]} 54. f5 {[%clk 0:00:09]}  h4 {[%clk 0:00:15]} 55. f6+ {[%clk 0:00:09]}  Kf8 {[%clk 0:00:14]} 56. Ne7 {[%clk 0:00:10]}  h3 {[%clk 0:00:12]} 57. Ng6+ {[%clk 0:00:09]}  Kg8 {[%clk 0:00:12]} 58. Kd7+ {[%clk 0:00:08]}  Kh7 {[%clk 0:00:10]} 59. Be4 {[%clk 0:00:08]}  Kh6 {[%clk 0:00:09]} 60. Ne5 {[%clk 0:00:05]}  Ba7 {[%clk 0:00:08]} 61. Kc6 {[%clk 0:00:05]}  Kg5 {[%clk 0:00:07]} 62. Nd7 {[%clk 0:00:04]}  Rh8 {[%clk 0:00:03]} 63. f7 {[%clk 0:00:04]} 1-0


[Site "https://www.chess.com"]